bitfinex/quotes_ETHUSD_20241030
["timestamp","ask_amount","ask_price","bid_price","bid_amount"]
[1730296807022,3.70408,2699.8,2699.3,0.786]
[1730296807542,3.7842,2700.3,2699.3,0.786]
[1730296807844,3.7044,2699.5,2699.0,4.48062]
[1730296808244,3.7044,2699.5,2699.0,0.7756]
[1730296808544,0.7911,2699.7,2698.7,0.7756]
[1730296808545,3.7048,2699.2,2698.7,0.7756]
[1730296808708,3.70507,2699.0,2698.7,0.7756]
[1730296808908,3.0,2699.4,2698.4,0.7756]
[1730296809105,3.70534,2698.9,2698.4,4.48141]
[1730296809551,3.70514,2699.0,2698.5,3.70568]
[1730296809752,3.70514,2699.0,2698.4,0.7756]
[1730296809963,3.70488,2699.2,2698.4,0.7756]
[1730296810120,3.70498,2699.1,2698.4,4.48147]
[1730296810315,3.70488,2699.2,2698.4,1.75571799]
[1730296810519,3.70502,2699.1,2698.6,3.70562]
[1730296810754,3.70518,2699.0,2698.5,3.70569]
[1730296811065,0.8309,2699.1,2698.1,4.48251]
[1730296811211,3.70577,2698.5,2698.1,0.7763]
[1730296811417,7.41112,2698.7,2698.1,0.7763]
[1730296811617,0.8309,2699.1,2698.2,4.42696623]
[1730296811618,3.70502,2699.1,2698.2,4.42696623]
[1730296811930,3.70502,2699.1,2698.1,5.2046347]
[1730296811931,3.70502,2699.1,2698.6,3.70554]
[1730296812240,3.70502,2699.1,2698.5,8.13264623]
[1730296812459,7.41005,2699.1,2698.5,3.70576]
[1730296812770,3.70523,2698.9,2698.4,3.70582]
[1730296812942,3.0,2699.2,2698.3,3.70594]
[1730296813150,3.0,2698.9,2698.1,0.7763]
[1730296813454,7.4111,2698.7,2698.2,3.70615]
[1730296813657,3.7055,2698.7,2698.2,3.70615]
[1730296813815,3.7055,2698.7,2698.1,0.7763]
[1730296814029,3.7058,2698.5,2698.1,3.70628]
[1730296814230,7.41114,2698.7,2698.1,3.70628]
[1730296814431,3.70555,2698.7,2698.2,3.70613]
[1730296814969,0.7856,2698.8,2698.3,3.70595]
[1730296815170,3.0,2698.9,2698.5,3.70574]
[1730296815471,4.52918,2699.5,2698.8,3.70527]
[1730296815677,3.70481,2699.2,2698.7,3.70546]
[1730296816167,3.70514,2699.0,2698.5,3.70573]
[1730296816478,3.70521,2698.9,2698.4,4.47362]
[1730296816635,7.41032,2699.0,2698.4,4.47362]
[1730296816835,3.705,2699.1,2698.6,3.70556]
[1730296817066,3.705,2699.1,2698.4,2.09291059]
[1730296817067,3.70488,2699.2,2698.4,2.09291059]
[1730296817378,3.70488,2699.2,2698.7,3.70541]
[1730296818057,7.40981,2699.2,2698.7,3.70541]
[1730296818372,3.70488,2699.2,2698.7,3.70541]
[1730296818532,7.40977,2699.2,2698.7,3.70541]
[1730296818967,3.70488,2699.2,2698.7,3.70541]
[1730296819169,3.0,2699.3,2698.9,3.70518]
[1730296819474,3.70401,2699.8,2699.2,3.7047]
[1730296819686,3.70422,2699.7,2699.2,3.7047]
[1730296820472,3.70401,2699.8,2699.2,3.7047]
[1730296820473,7.40812,2699.8,2699.2,3.7047]
[1730296820677,3.70401,2699.8,2699.3,3.70464]
[1730296820833,3.70393,2699.9,2699.4,3.70444]
[1730296821173,3.7035,2700.2,2699.6,3.70418]
[1730296821344,3.7035,2700.2,2699.5,3.70428]
[1730296821548,3.70366,2700.1,2699.6,3.70423]
[1730296821749,3.70372,2700.0,2699.2,0.7571]
[1730296821953,3.70372,2700.0,2699.4,3.70444]
[1730296822372,3.70372,2700.0,2699.5,3.7043]
[1730296823465,3.70372,2700.0,2699.6,3.70424]
[1730296823986,3.0,2700.3,2699.7,3.70411]
[1730296824185,3.0,2700.3,2699.7,3.704]
[1730296824186,6.70336,2700.3,2699.7,3.704]
[1730296824474,4.45458,2700.4,2699.5,0.7681]
[1730296824674,3.70412,2699.7,2699.2,0.7689]
[1730296824877,3.70412,2699.7,2699.2,4.47369]
[1730296825085,3.7043,2699.6,2699.2,0.7689]
[1730296825239,3.70412,2699.7,2699.2,0.7689]
[1730296825240,7.40834,2699.7,2699.2,4.47369]
[1730296825441,3.70434,2699.6,2699.2,0.7689]
[1730296825841,3.70412,2699.7,2699.2,0.7689]
[1730296826075,7.40832,2699.7,2699.2,4.47369]
[1730296826446,3.70429,2699.6,2699.2,4.47369]
[1730296826644,3.70412,2699.7,2699.2,0.7689]
[1730296826844,3.70435,2699.6,2699.0,3.705]
[1730296827140,3.70439,2699.5,2699.0,3.70498]
[1730296827387,3.70439,2699.5,2698.9,0.779]
[1730296827388,3.70466,2699.3,2698.9,0.779]
[1730296827587,3.70466,2699.3,2698.6,4.46143]
[1730296827588,3.7048,2699.2,2698.6,4.46143]
[1730296827760,3.70497,2699.1,2698.6,4.46143]
[1730296827944,3.70482,2699.2,2698.7,3.70546]
[1730296828145,3.70448,2699.5,2698.6,1.572626]
[1730296828451,6.70453,2699.4,2698.8,3.70525]
[1730296828779,3.70468,2699.3,2698.8,3.70525]
[1730296829086,3.70486,2699.2,2698.6,4.46139]
[1730296829290,3.70496,2699.1,2698.6,0.7559]
[1730296829450,3.70512,2699.0,2698.6,0.7559]
[1730296829655,3.7053,2698.9,2698.6,0.7559]
[1730296829853,3.7053,2698.9,2698.4,3.70583]
[1730296830168,3.70528,2698.9,2698.4,3.70583]
[1730296830350,3.70528,2698.9,2698.5,3.70575]
[1730296830698,3.70504,2699.1,2698.3,4.51054]
[1730296830851,3.70514,2699.0,2698.5,3.70572]
[1730296831365,4.4681,2699.2,2698.3,2.13341959]
[1730296831688,3.0,2699.4,2698.4,0.55]
[1730296831689,6.70456,2699.4,2698.4,0.55]
[1730296831885,3.0,2699.4,2698.8,3.70525]
[1730296832087,3.70435,2699.6,2699.1,3.70482]
[1730296832387,3.70363,2700.1,2699.5,0.7656]
[1730296832388,3.70378,2700.0,2699.5,0.7656]
[1730296832595,4.52376,2700.1,2699.6,3.70425]
[1730296832764,3.70356,2700.1,2699.6,7.40842]
[1730296832965,3.70356,2700.1,2699.6,3.70417]
[1730296833152,3.70371,2700.0,2699.6,3.70417]
[1730296833489,3.70371,2700.0,2699.5,0.7656]
[1730296833702,3.70371,2700.0,2699.5,4.916982]
[1730296834608,3.70336,2700.3,2699.8,3.70391]
[1730296834901,3.7031,2700.5,2700.0,3.70368]
[1730296835064,3.70311,2700.5,2700.0,3.70368]
[1730296835271,3.70322,2700.4,2699.9,3.70383]
[1730296835798,3.70356,2700.1,2699.7,3.70398]
[1730296835999,3.70323,2700.4,2699.7,3.70398]
[1730296836294,3.70332,2700.3,2699.8,3.70387]
[1730296836705,3.70344,2700.2,2699.7,4.07478]
[1730296837198,3.7036,2700.1,2699.7,0.3708]
[1730296837407,3.70326,2700.4,2699.7,0.3708]
[1730296837559,3.70326,2700.4,2699.9,3.70375]
[1730296837760,3.70301,2700.5,2700.0,3.70363]
[1730296837955,3.8201,2700.7,2700.2,3.70341]
[1730296837956,7.5229,2700.7,2700.2,3.70341]
[1730296838163,3.70256,2700.9,2700.2,3.70342]
[1730296838462,3.70248,2700.9,2700.4,3.70307]
[1730296838683,3.70248,2700.9,2700.4,3.70305]
[1730296838998,3.70248,2700.9,2700.4,7.40613]
[1730296839171,3.70248,2700.9,2700.4,3.70305]
[1730296839378,4.4647,2701.3,2700.4,0.4153752]
[1730296839558,3.702,2701.3,2700.8,3.7026]
[1730296839761,3.702,2701.3,2700.8,3.70254]
[1730296840703,3.70201,2701.3,2700.8,3.70254]
[1730296840997,3.70201,2701.3,2700.6,3.70274]
[1730296841359,6.70184,2701.4,2700.5,0.7614]
[1730296841562,3.70246,2701.0,2700.5,0.7614]
[1730296841866,3.70246,2701.0,2700.6,3.70287]
[1730296842186,4.53087,2701.1,2700.6,3.70287]
[1730296842408,3.70219,2701.1,2700.5,0.7614]
[1730296842702,3.0,2701.2,2700.7,3.70265]
[1730296842908,3.0,2701.2,2700.7,7.40532]
[1730296843065,3.0,2701.2,2700.7,3.70265]
[1730296843261,3.70203,2701.3,2700.8,0.370265]
[1730296843461,0.8289,2701.4,2700.8,0.370265]
[1730296843663,3.70192,2701.3,2700.7,7.4054]
[1730296843971,3.70214,2701.2,2700.7,3.70266]
[1730296844299,3.70185,2701.4,2700.8,3.70252]
[1730296844523,3.70128,2701.8,2700.3,4.07404]
[1730296844524,3.70133,2701.8,2701.0,4.48363]
[1730296844658,3.76553762,2701.9,2701.0,5.20836623]
[1730296844861,3.70147,2701.7,2701.1,4.25211]
[1730296845095,3.70123,2701.8,2701.3,3.70183]
[1730296845314,3.70105,2702.0,2701.5,0.7814]
[1730296845768,3.70078,2702.2,2701.5,0.7814]
[1730296845962,3.70097,2702.0,2701.5,0.7814]
[1730296846171,3.70077,2702.2,2701.5,1.30223662]
[1730296846377,3.70083,2702.1,2701.6,3.7015]
[1730296846575,3.70047,2702.4,2701.6,3.7015]
[1730296846774,3.70076,2702.2,2701.8,0.7863]
[1730296847064,3.70077,2702.2,2701.8,0.7863]
[1730296847297,3.70048,2702.4,2701.8,0.7863]
[1730296847509,4.52844,2702.9,2702.1,3.70082]
[1730296847686,3.76386809,2703.1,2702.3,0.7863]
[1730296847687,3.70027,2702.5,2702.3,0.7863]
[1730296847902,3.70001,2702.7,2702.3,0.7863]
[1730296848101,3.69955,2703.1,2702.3,4.48684]
[1730296848307,3.69958,2703.1,2702.3,0.7863]
[1730296848586,3.69967,2703.0,2702.4,3.70029]
[1730296848781,3.6998,2702.9,2702.3,0.7863]
[1730296849007,0.7723,2703.0,2702.3,0.7863]
[1730296849211,3.70051,2702.4,2701.9,0.7735]
[1730296849421,3.7002,2702.6,2701.9,4.47451]
[1730296849623,3.69993,2702.8,2702.2,3.70067]
[1730296849792,3.70008,2702.7,2702.3,0.8104]
[1730296850106,3.69986,2702.8,2702.4,3.70039]
[1730296850310,3.69962,2703.0,2702.4,8.221859]
[1730296850520,8.4228,2703.5,2702.4,4.521489]
[1730296850691,3.69912,2703.4,2702.8,3.69976]
[1730296850891,3.69912,2703.4,2702.6,1.3664]
[1730296851123,0.9132981,2703.8,2703.0,0.8164]
[1730296851124,3.69884,2703.6,2703.0,0.8164]
[1730296851326,0.9132981,2703.8,2703.0,0.8164]
[1730296851327,0.1297981,2703.8,2703.1,4.42696623]
[1730296851498,0.1297981,2703.8,2703.6,0.8164]
[1730296852922,0.1297981,2703.8,2703.7,4.24863]
[1730296853132,0.1297981,2703.8,2703.7,9.48769623]
[1730296853299,0.1297981,2703.8,2703.7,12.49769623]
[1730296853506,0.012,2704.3,2704.2,4.24795]
[1730296853746,0.012,2704.3,2704.2,12.48701623]
[1730296853906,0.012,2704.3,2704.2,14.10752585]
[1730296854537,0.1297981,2706.5,2705.5,0.56]
[1730296854705,0.1297981,2706.5,2706.4,4.99504]
[1730296855046,0.1297981,2706.5,2706.4,1.3001]
[1730296855367,0.1297981,2706.5,2706.4,0.7501]
[1730296855928,3.6951,2706.3,2705.9,0.8098]
[1730296856201,3.8246881,2706.5,2705.9,0.8098]
[1730296856534,3.69506,2706.4,2705.9,0.8098]
[1730296856750,3.69519,2706.3,2705.9,0.8098]
[1730296857539,3.69574,2705.9,2705.5,0.8278]
[1730296858316,3.69558,2706.0,2705.5,0.8278]
[1730296858517,3.6959,2705.7,2705.5,0.8278]
[1730296858716,0.1297981,2706.5,2705.5,0.8278]
[1730296859041,3.1297981,2706.5,2705.5,0.8278]
[1730296859253,3.69551,2706.0,2705.5,0.8278]
[1730296860114,3.69588,2705.8,2705.5,0.8278]
[1730296860320,3.69516,2706.3,2705.5,0.8278]
[1730296860516,3.69591,2705.7,2705.5,0.8278]
[1730296860754,3.69591,2705.7,2704.9,0.7533]
[1730296860961,3.69591,2705.7,2705.0,0.88773462]
[1730296861659,3.6962,2705.5,2705.0,0.88773462]
[1730296862161,7.42696623,2706.0,2704.9,0.7533]
[1730296862362,3.69724,2704.8,2704.3,0.7992]
[1730296862657,0.8252,2705.6,2704.3,0.7992]
[1730296862918,3.6974,2704.7,2704.3,0.7992]
[1730296863263,3.69767,2704.4,2704.3,0.7992]
[1730296863625,3.69788,2704.3,2703.7,0.8187]
[1730296863824,3.69833,2704.0,2703.8,0.85771382]
[1730296864055,3.69833,2704.0,2703.7,0.8187]
[1730296864268,3.69778,2704.4,2703.7,4.51723]
[1730296864628,3.69744,2704.6,2703.7,0.8187]
[1730296864964,3.69756,2704.5,2703.8,4.22296662]
[1730296865173,3.6981,2704.1,2703.8,0.52456662]
[1730296865325,3.0,2704.7,2703.7,0.8187]
[1730296865533,3.0,2704.7,2703.0,4.42696623]
[1730296865534,3.69875,2703.7,2703.3,0.8094]
[1730296865753,3.69902,2703.5,2703.3,0.8094]
[1730296865957,3.69904,2703.4,2702.8,0.8216]
[1730296866125,7.39799,2703.5,2702.8,0.8216]
[1730296866341,3.69897,2703.5,2702.9,0.52485662]
[1730296866548,3.6991,2703.4,2702.9,0.52485662]
[1730296866784,7.39672,2703.9,2702.8,0.8216]
[1730296866978,3.69791,2704.3,2702.4,2.49794977]
[1730296866979,0.786,2703.4,2702.4,2.49794977]
[1730296867304,0.786,2703.4,2701.7,0.8219]
[1730296867305,7.40095,2702.4,2701.7,0.8219]
[1730296867467,3.70063,2702.3,2701.7,0.8219]
[1730296867799,4.42696623,2702.9,2701.7,0.8219]
[1730296867800,3.70077,2702.2,2701.7,0.8219]
[1730296868006,3.70077,2702.2,2701.2,0.7995]
[1730296868296,3.7013,2701.8,2701.3,0.89286462]
[1730296868496,3.70068,2702.2,2700.7,0.7995]
[1730296868669,3.7016,2701.6,2700.8,0.450233]
[1730296869106,3.70219,2701.1,2700.8,0.450233]
[1730296869408,4.51016,2701.8,2700.3,0.7995]
[1730296869562,3.70172,2701.5,2700.6,3.70287]
[1730296869763,3.70172,2701.5,2700.4,3.70311]
[1730296869764,3.0,2701.7,2700.7,0.370287]
[1730296870113,3.70178,2701.4,2700.6,3.70285]
[1730296870267,3.70119,2701.9,2701.0,3.70231]
[1730296870461,3.70128,2701.8,2700.8,7.40498]
[1730296870658,6.70089,2702.1,2700.8,3.70247]
[1730296870912,0.01,2702.7,2701.4,3.70169]
[1730296871064,0.01,2702.7,2701.1,0.8165]
[1730296871065,3.70036,2702.5,2701.6,3.7015]
[1730296871706,3.70036,2702.5,2701.5,4.071719]
[1730296871707,3.70041,2702.4,2701.5,4.071719]
[1730296871873,3.70005,2702.7,2701.6,4.1086219]
[1730296872074,3.7001,2702.7,2701.8,3.70111]
[1730296872377,3.70028,2702.5,2701.9,0.506761]
[1730296872585,3.70014,2702.6,2701.7,0.8165]
[1730296872893,3.70025,2702.6,2701.8,0.49250919]
[1730296873057,3.70034,2702.5,2701.8,0.49250919]
[1730296873263,3.69993,2702.8,2701.8,4.19371919]
[1730296873463,3.70025,2702.6,2701.8,0.49250919]
[1730296873765,3.70054,2702.4,2701.7,0.8165]
[1730296873962,3.0,2702.4,2701.3,0.8214]
[1730296874214,0.8332,2702.3,2701.4,0.452341]
[1730296874385,3.70112,2701.9,2701.3,0.8214]
[1730296874591,3.70172,2701.5,2700.9,0.4072755]
[1730296874904,3.70172,2701.5,2700.8,0.816]
[1730296874905,7.40347,2701.5,2700.8,0.816]
[1730296875124,3.70172,2701.5,2700.8,0.816]
[1730296875271,3.701,2702.0,2700.3,0.7529]
[1730296875272,3.70234,2701.0,2700.3,0.7529]
[1730296875471,3.70221,2701.1,2700.3,1.198526]
[1730296875674,3.70239,2701.0,2700.3,0.7529]
[1730296875918,3.70269,2700.8,2700.3,0.7529]
[1730296876070,3.0,2701.1,2699.9,4.45665]
[1730296876274,3.70288,2700.6,2699.9,0.7529]
[1730296876595,3.70323,2700.4,2700.0,0.445676]
[1730296876804,3.70323,2700.4,2699.5,0.7874]
[1730296877001,0.06422469,2700.6,2699.9,3.70379]
[1730296877186,3.70275,2700.7,2700.0,0.370379]
[1730296877372,3.70264,2700.8,2700.1,3.70354]
[1730296877572,3.0,2700.7,2700.1,3.70354]
[1730296877797,3.0,2700.7,2700.1,4.4813109]
[1730296877998,3.0,2700.9,2700.2,3.70334]
[1730296878185,3.0,2700.9,2700.1,0.7777709]
[1730296878186,3.70252,2700.9,2700.1,0.7777709]
[1730296878400,3.0,2700.6,2699.7,3.70397]
[1730296878709,3.0,2700.6,2700.0,3.70361]
[1730296878919,3.70237,2701.0,2700.2,3.70342]
[1730296879075,3.70123,2701.8,2700.9,3.70238]
[1730296879502,3.70154,2701.6,2700.9,7.40477]
[1730296879688,3.70154,2701.6,2700.9,3.70238]
[1730296880003,3.7014,2701.7,2701.0,3.70231]
[1730296880200,3.70166,2701.5,2701.1,0.740469]
[1730296880506,3.70151,2701.6,2700.9,3.70242]
[1730296880831,3.70151,2701.6,2700.8,0.55]
[1730296881122,3.70151,2701.6,2700.9,0.425264]
[1730296881630,3.70164,2701.5,2700.9,0.425264]
[1730296881830,3.70151,2701.6,2700.9,0.425264]
[1730296882201,3.70151,2701.6,2700.9,4.127724]
[1730296882524,3.70138,2701.7,2701.0,3.70224]
[1730296882728,0.06424248,2702.2,2701.2,1.34]
[1730296882941,3.70069,2702.2,2701.5,3.70154]
[1730296883234,4.4697,2702.7,2701.9,3.70101]
[1730296883386,3.69973,2702.9,2702.1,0.79]
[1730296883583,3.69973,2702.9,2702.1,4.4907]
[1730296884001,4.46919,2703.1,2702.1,0.79]
[1730296884203,4.46919,2703.1,2702.4,3.70033]
[1730296884204,3.69947,2703.1,2702.4,3.70033]
[1730296884423,3.69922,2703.3,2702.6,3.70013]
[1730296884635,4.46866,2703.5,2702.6,3.70013]
[1730296884928,3.69925,2703.3,2702.6,3.70013]
[1730296885126,3.69937,2703.2,2702.6,3.70013]
[1730296885286,3.69937,2703.2,2702.4,3.70036]
[1730296885287,3.69937,2703.2,2702.5,3.70027]
[1730296885498,3.69925,2703.3,2702.5,4.440325]
[1730296885689,3.7697,2703.5,2702.2,4.25059]
[1730296885888,0.7697,2703.5,2702.2,3.70059]
[1730296886089,3.70049,2702.4,2701.7,0.8118]
[1730296886335,3.70071,2702.2,2701.7,0.8118]
[1730296886632,3.70071,2702.2,2701.5,3.70164]
[1730296886932,3.70079,2702.2,2701.6,0.740333]
[1730296887097,3.70055,2702.3,2701.6,4.441743]
[1730296887300,0.8233,2702.7,2701.7,3.70136]
[1730296887527,3.70065,2702.3,2701.8,0.370136]
[1730296887688,3.70065,2702.3,2701.6,3.7015]
[1730296887888,0.8233,2702.7,2701.4,0.55]
[1730296888190,0.8233,2702.7,2701.5,3.70164]
[1730296888191,3.70076,2702.2,2701.5,3.70164]
[1730296888384,3.70076,2702.2,2701.6,3.7015]
[1730296888693,3.70091,2702.1,2701.4,4.151233]
[1730296888889,3.0,2702.4,2701.4,0.449473]
[1730296889095,3.70125,2701.8,2701.3,0.7929]
[1730296889312,3.70166,2701.5,2700.8,4.53202]
[1730296889617,3.70171,2701.5,2700.8,0.8295]
[1730296889810,3.70171,2701.5,2700.9,0.4903433]
[1730296890048,3.70171,2701.5,2700.9,4.1927933]
[1730296890716,3.70187,2701.4,2700.9,0.4903433]
[1730296890954,3.70171,2701.5,2700.9,4.1927933]
[1730296891164,3.70141,2701.7,2701.1,3.70216]
[1730296891323,3.70141,2701.7,2701.0,0.50222933]
[1730296891528,7.40289,2701.7,2701.0,4.20454933]
[1730296891734,3.70141,2701.7,2701.0,4.20454933]
[1730296891937,3.70141,2701.7,2701.1,0.79068993]
[1730296892125,3.0,2702.0,2701.1,4.49275993]
[1730296892336,0.8056,2702.3,2701.2,3.70199]
[1730296892544,0.8056,2702.3,2701.3,0.370199]
[1730296892545,3.70122,2701.9,2701.3,0.370199]
[1730296892910,3.70091,2702.1,2701.4,3.70165]
[1730296893110,3.70061,2702.3,2701.5,4.49983]
[1730296893316,3.70014,2702.6,2701.8,3.70123]
[1730296893621,3.70052,2702.4,2701.7,3.70129]
[1730296893821,3.70052,2702.4,2701.8,3.70123]
[1730296894022,3.70022,2702.6,2701.9,3.70106]
[1730296894248,3.70022,2702.6,2702.0,0.370106]
[1730296894452,3.69977,2702.9,2702.3,0.826]
[1730296894652,3.69974,2702.9,2702.3,4.52653]
[1730296894809,3.69974,2702.9,2702.3,4.979183]
[1730296895007,3.69941,2703.2,2702.3,4.979183]
[1730296895258,3.6996,2703.0,2702.3,4.979083]
[1730296895461,3.69918,2703.3,2702.5,3.70019]
[1730296895616,3.69911,2703.4,2702.7,3.69996]
[1730296895953,3.69932,2703.2,2702.5,7.40038]
[1730296896114,3.69932,2703.2,2702.3,4.52642]
[1730296896320,3.69932,2703.2,2702.5,3.70025]
[1730296896540,7.39871,2703.2,2702.5,3.70025]
[1730296896766,3.69961,2703.0,2702.4,3.70041]
[1730296896952,3.69961,2703.0,2702.4,0.822682]
[1730296897248,3.6996,2703.0,2702.4,3.7004]
[1730296897764,0.38611451,2703.3,2703.2,4.48851]
[1730296898089,0.8063,2704.4,2703.4,3.69897]
[1730296898243,7.39582,2704.3,2703.5,3.6989]
[1730296898580,3.69805,2704.2,2703.4,3.69894]
[1730296898874,3.69798,2704.2,2703.5,3.69887]
[1730296899179,3.6974,2704.6,2703.5,3.6989]
[1730296899488,3.69815,2704.1,2703.5,3.6989]
[1730296899663,3.69756,2704.5,2703.8,3.69841]
[1730296899863,3.69733,2704.7,2704.0,7.39627]
[1730296900047,3.69747,2704.6,2703.9,4.49954]
[1730296900378,3.69747,2704.6,2703.9,1.251154]
[1730296900533,3.69775,2704.4,2703.9,1.251154]
[1730296900878,3.69702,2704.9,2703.4,0.55]
[1730296900879,3.69817,2704.1,2703.4,3.69903]
[1730296901083,3.69811,2704.1,2703.4,4.50016]
[1730296901373,3.69832,2704.0,2703.4,4.50016]
[1730296901553,3.0,2704.2,2703.4,0.8012]
[1730296901737,3.69857,2703.8,2703.4,0.8012]
[1730296902349,3.0,2704.2,2703.4,4.50015]
[1730296902350,3.69819,2704.1,2703.4,4.50015]
[1730296902558,3.0,2704.2,2703.4,4.50015]
[1730296902840,3.6983,2704.0,2703.4,4.50015]
[1730296903036,3.6983,2704.0,2703.4,0.8012]
[1730296903338,3.69822,2704.0,2703.0,0.7619]
[1730296903539,3.69911,2703.4,2702.7,3.69992]
[1730296903742,3.69911,2703.4,2702.7,0.816194]
[1730296903969,3.69926,2703.3,2702.7,4.516194]
[1730296904154,3.69911,2703.4,2702.7,4.516194]
[1730296904439,3.6994,2703.2,2702.5,0.7619]
[1730296904840,3.6994,2703.2,2702.6,3.70006]
[1730296905078,3.69919,2703.3,2702.7,3.69998]
[1730296905242,3.69911,2703.4,2702.8,3.69975]
[1730296905439,3.69921,2703.3,2702.6,7.40008]
[1730296905640,3.69921,2703.3,2702.7,0.816198]
[1730296905992,3.69921,2703.3,2702.8,3.69986]
[1730296906281,3.69944,2703.2,2702.5,0.7619]
[1730296906455,3.6998,2702.9,2702.5,0.7619]
[1730296906660,3.69969,2703.0,2702.5,0.7619]
[1730296907173,3.69967,2703.0,2702.5,0.7619]
[1730296907376,3.69981,2702.9,2702.5,0.7619]
[1730296907575,3.69988,2702.8,2702.5,0.7619]
[1730296907938,3.69967,2703.0,2702.5,0.7619]
[1730296908157,7.39933,2703.0,2702.5,0.7619]
[1730296908590,3.7001,2702.7,2702.0,3.70086]
[1730296908813,3.70028,2702.5,2702.0,3.97328176]
[1730296908971,7.40017,2702.7,2702.0,0.84920318]
[1730296909158,3.69955,2703.1,2702.6,0.8176]
[1730296909363,3.69907,2703.4,2702.8,3.69974]
[1730296909581,7.39819,2703.4,2702.7,3.69989]
[1730296909789,3.69921,2703.3,2702.7,4.52166]
[1730296909993,3.69918,2703.3,2702.7,4.52166]
[1730296910480,3.69872,2703.7,2702.7,4.52174]
[1730296910687,3.69879,2703.6,2703.1,3.69934]
[1730296910908,3.69861,2703.8,2703.1,7.3987]
[1730296911078,7.39634,2704.1,2703.5,4.50077]
[1730296911402,3.69822,2704.0,2703.5,4.50077]
[1730296912160,0.8237,2704.5,2703.5,0.802]
[1730296912405,3.69911,2703.4,2703.1,0.7624]
[1730296912698,3.69918,2703.3,2702.7,4.46227]
[1730296912871,0.8229,2703.7,2702.7,4.46227]
[1730296912872,3.69966,2703.0,2702.7,0.7624]
[1730296913077,0.8229,2703.7,2702.4,0.2723399]
[1730296913078,0.01,2703.5,2702.4,0.2723399]
[1730296913263,0.01,2703.5,2702.3,0.7624]
[1730296913264,3.70021,2702.6,2702.3,0.7624]
[1730296913478,3.70062,2702.3,2702.0,1.12172357]
[1730296913807,3.70062,2702.3,2701.9,0.8101]
[1730296914113,3.70036,2702.5,2701.9,0.8101]
[1730296914264,3.70009,2702.7,2701.9,0.8101]
[1730296914464,3.70014,2702.6,2702.0,3.70096]
[1730296914682,3.70014,2702.6,2701.9,4.51107]
[1730296914683,3.70009,2702.7,2701.9,4.51107]
[1730296914879,3.70041,2702.5,2701.9,4.51107]
[1730296915212,3.69991,2702.8,2701.9,0.8101]
[1730296915500,3.70049,2702.4,2701.9,1.1809]
[1730296915713,3.70049,2702.4,2701.9,4.88196]
[1730296915872,3.70049,2702.4,2701.9,4.07186]
[1730296916076,3.70049,2702.4,2701.7,3.70128]
[1730296916276,3.70049,2702.4,2701.8,3.70121]
[1730296916495,7.40102,2702.4,2701.8,3.70121]
[1730296916699,3.70049,2702.4,2701.7,3.70128]
[1730296916920,3.70049,2702.4,2701.7,7.40258]
[1730296916921,3.70055,2702.3,2701.7,7.40258]
[1730296917085,3.70049,2702.4,2701.8,3.70116]
[1730296917282,3.70029,2702.5,2701.9,3.70101]
[1730296917478,3.7004,2702.5,2701.9,3.62749]
[1730296917709,3.70022,2702.6,2702.0,3.70084]
[1730296917896,3.70028,2702.5,2702.0,3.70084]
[1730296918077,3.70022,2702.6,2701.8,4.441394]
[1730296918278,3.7005,2702.4,2701.8,3.70115]
[1730296918517,3.69991,2702.8,2701.6,3.70138]
[1730296918681,3.70041,2702.4,2701.8,3.70116]
[1730296919204,3.70041,2702.4,2701.8,7.40232]
[1730296919414,3.70001,2702.7,2702.2,3.70068]
[1730296919616,0.782,2703.0,2702.0,3.70093]
[1730296919817,3.7003,2702.5,2701.8,3.70119]
[1730296920127,3.7003,2702.5,2701.7,3.70137]
[1730296920128,3.70055,2702.3,2701.7,3.70137]
[1730296920281,3.70055,2702.3,2701.4,0.82]
[1730296920282,3.70139,2701.7,2701.4,0.82]
[1730296921017,3.70098,2702.0,2701.5,3.70163]
[1730296921223,3.70113,2701.9,2700.9,0.7551]
[1730296921385,3.0,2702.0,2701.5,3.70157]
[1730296921581,3.0,2702.0,2701.4,3.70169]
[1730296921789,3.69989,2702.8,2701.6,0.7551]
[1730296922091,3.70024,2702.6,2702.0,3.70088]
[1730296922291,3.70024,2702.6,2702.1,3.7008]
[1730296922489,3.70035,2702.5,2701.8,3.70114]
[1730296922822,3.70024,2702.6,2702.0,3.70096]
[1730296923150,3.7003,2702.5,2702.0,3.70096]
[1730296923554,3.70024,2702.6,2702.0,3.70088]
[1730296923852,3.70021,2702.6,2702.0,3.70088]
[1730296924023,3.70031,2702.5,2702.0,3.70088]
[1730296924353,3.70027,2702.5,2702.0,3.70087]
[1730296924651,7.40046,2702.6,2701.8,3.7011]
[1730296924825,7.40046,2702.6,2701.8,4.14672]
[1730296925146,3.69961,2703.0,2701.8,4.14672]
[1730296925147,3.69968,2703.0,2702.0,7.40192]
[1730296925352,3.69939,2703.2,2702.6,3.70004]
[1730296925655,3.69973,2702.9,2702.4,3.70031]
[1730296925860,3.69957,2703.1,2702.6,3.70007]
[1730296926007,3.69931,2703.3,2702.7,3.69999]
[1730296926209,3.69921,2703.3,2702.9,0.7958]
[1730296926726,7.39802,2703.5,2702.9,4.49543]
[1730296926935,3.69908,2703.4,2702.9,4.49543]
[1730296927328,3.69899,2703.5,2703.0,3.69949]
[1730296927531,3.69899,2703.5,2702.9,0.7958]
[1730296927834,0.7597,2703.7,2703.1,3.69933]